bitfinex/quotes_BTCUSD_20250119
["timestamp","ask_amount","ask_price","bid_price","bid_amount"]
[1737288763821,0.24804659,104530.0,104520.0,0.0004287]
[1737288764078,0.24804659,104530.0,104520.0,0.0961037]
[1737288764276,0.01664059,104530.0,104520.0,0.22006037]
[1737288764482,0.0076995,104530.0,104520.0,0.31834451]
[1737288764649,0.0076995,104530.0,104520.0,0.46834451]
[1737288764856,0.00104944,104550.0,104540.0,0.195657]
[1737288765125,0.00104944,104550.0,104540.0,0.19661343]
[1737288765329,0.00104944,104550.0,104540.0,0.21961343]
[1737288765460,0.00104944,104550.0,104540.0,0.61789781]
[1737288765661,0.00104944,104550.0,104540.0,0.71789781]
[1737288766093,0.00104944,104550.0,104540.0,0.61789781]
[1737288770790,0.00104944,104550.0,104540.0,0.71789781]
[1737288772224,0.00881684,104550.0,104540.0,0.71789781]
[1737288772954,0.00881684,104550.0,104540.0,0.76089781]
[1737288773109,0.00089986,104570.0,104560.0,0.368638]
[1737288773314,0.00089986,104570.0,104560.0,0.46787881]
[1737288773693,0.00089986,104570.0,104560.0,0.56787881]
[1737288774095,0.00089986,104570.0,104560.0,0.61087881]
[1737288774096,0.00743732,104570.0,104560.0,0.61087881]
[1737288774303,0.00089986,104570.0,104560.0,0.61087881]
[1737288774503,0.00743732,104570.0,104560.0,0.61087881]
[1737288774724,0.00089986,104570.0,104560.0,0.61087881]
[1737288774923,0.00743732,104570.0,104560.0,0.61087881]
[1737288775127,0.00089986,104570.0,104560.0,0.61087881]
[1737288775744,0.00743732,104570.0,104560.0,0.61087881]
[1737288775960,0.00089986,104570.0,104560.0,0.61087881]
[1737288776182,0.00743732,104570.0,104560.0,0.61087881]
[1737288776425,0.00089986,104570.0,104560.0,0.61087881]
[1737288776652,0.00743732,104570.0,104560.0,0.61087881]
[1737288778361,0.00743732,104570.0,104560.0,0.76087881]
[1737288778617,0.00544794,104570.0,104560.0,0.76087881]
[1737288778856,0.0474,104610.0,104600.0,0.268602]
[1737288779096,0.05359291,104610.0,104600.0,0.46784281]
[1737288781048,0.05359291,104610.0,104600.0,0.368602]
[1737288781297,0.14918591,104610.0,104600.0,0.268602]
[1737288781527,0.14918591,104610.0,104600.0,0.368602]
[1737288781762,0.05359291,104610.0,104600.0,0.368602]
[1737288782022,0.05359291,104610.0,104600.0,0.195602]
[1737288782240,0.05359291,104610.0,104600.0,0.31879871]
[1737288782241,0.00619291,104610.0,104600.0,0.31879871]
[1737288782476,0.00619291,104610.0,104600.0,0.71784281]
[1737288784455,0.00619291,104610.0,104600.0,0.74784281]
[1737288785344,0.00619291,104610.0,104600.0,0.59784281]
[1737288785574,0.00619291,104610.0,104600.0,0.74784281]
[1737288785823,0.00619291,104610.0,104600.0,0.54784281]
[1737288786059,0.00619291,104610.0,104600.0,0.49784281]
[1737288789667,0.00619291,104610.0,104600.0,0.398602]
[1737288790002,0.00619291,104610.0,104600.0,0.49784281]
[1737288790219,0.00619291,104610.0,104600.0,0.74784281]
[1737288790861,0.00619291,104610.0,104600.0,0.80523281]
[1737288792026,0.0070915,104610.0,104600.0,0.80523281]
[1737288792628,0.0070915,104610.0,104600.0,0.81387199]
[1737288793035,0.00139662,104610.0,104600.0,0.81387199]
[1737288794444,0.00713786,104610.0,104600.0,0.81387199]
[1737288795825,0.00139662,104610.0,104600.0,0.81387199]
[1737288796024,0.00715694,104610.0,104600.0,0.81387199]
[1737288796205,0.00715694,104610.0,104600.0,0.55648199]
[1737288796408,0.00715694,104610.0,104600.0,0.64784281]
[1737288796615,0.00715694,104610.0,104600.0,0.74784281]
[1737288796813,0.00715694,104610.0,104600.0,0.62484281]
[1737288797034,0.00715694,104610.0,104600.0,0.47484281]
[1737288797235,0.00715694,104610.0,104600.0,0.49784281]
[1737288797711,0.00715694,104610.0,104600.0,0.47484281]
[1737288797954,0.00715694,104610.0,104600.0,0.32484281]
[1737288798468,0.00715694,104610.0,104600.0,0.34784281]
[1737288798684,0.00715694,104610.0,104600.0,0.49784281]
[1737288798870,0.00715694,104610.0,104600.0,0.34784281]
[1737288799836,0.00715694,104610.0,104600.0,0.49784281]
[1737288810972,0.00715694,104610.0,104600.0,0.74784281]
[1737288811159,0.00090028,104620.0,104610.0,0.618593]
[1737288811350,0.00104959,104620.0,104610.0,0.71783381]
[1737288812357,0.00104959,104620.0,104610.0,0.76083381]
[1737288812842,0.00089943,104630.0,104620.0,0.618584]
[1737288813035,0.00089943,104630.0,104620.0,0.81346851]
[1737288813761,0.00089943,104630.0,104620.0,0.87085851]
[1737288813933,0.00089922,104650.0,104640.0,0.368565]
[1737288814162,0.00089922,104650.0,104640.0,0.46780581]
[1737288814363,0.00089922,104650.0,104640.0,0.56344361]
[1737288814539,0.00089922,104650.0,104640.0,0.81344361]
[1737288814964,0.00089922,104650.0,104640.0,0.71780581]
[1737288815372,0.00089922,104650.0,104640.0,0.61780581]
[1737288815565,0.00089922,104650.0,104640.0,0.71780581]
[1737288816549,0.00094895,104650.0,104640.0,0.71780581]
[1737288816758,0.00094895,104650.0,104640.0,0.61780581]
[1737288816958,0.00094895,104650.0,104640.0,0.64780581]
[1737288817155,0.00094895,104650.0,104640.0,0.61780581]
[1737288817364,0.00094895,104650.0,104640.0,0.71780581]
[1737288818007,0.00514472,104650.0,104640.0,0.71780581]
[1737288818245,0.00094895,104650.0,104640.0,0.71780581]
[1737288818438,0.00513612,104650.0,104640.0,0.71780581]
[1737288820006,0.00513612,104650.0,104640.0,0.61780581]
[1737288820386,0.00513612,104650.0,104640.0,0.46780581]
[1737288820759,0.08833612,104650.0,104640.0,0.46780581]
[1737288822038,0.08833612,104650.0,104640.0,0.49780581]
[1737288823947,0.00513612,104650.0,104640.0,0.74780581]
[1737288824349,0.00513612,104650.0,104640.0,0.71780581]
[1737288826952,0.00513612,104650.0,104640.0,0.74780581]
[1737288827563,0.00513612,104650.0,104640.0,0.75647463]
[1737288829079,0.00513612,104650.0,104640.0,0.72647463]
[1737288830905,0.00089964,104660.0,104650.0,0.618556]
[1737288831110,0.00089964,104660.0,104650.0,0.81341231]
[1737288832067,0.00089964,104660.0,104650.0,0.84341231]
[1737288835861,0.00089964,104660.0,104650.0,0.90082231]
[1737288836161,0.00089964,104660.0,104650.0,0.87082231]
[1737288837694,0.00089964,104660.0,104650.0,0.88979307]
[1737288840020,0.0004281,104670.0,104660.0,0.618547]
[1737288840225,0.0004281,104670.0,104660.0,0.77519781]
[1737288843018,0.0480281,104670.0,104660.0,0.52519781]
[1737288843225,0.0480281,104670.0,104660.0,0.42519781]
[1737288843366,0.1281281,104670.0,104660.0,0.44478781]
[1737288844123,0.1281281,104670.0,104660.0,0.46778781]
[1737288846980,0.1281281,104670.0,104660.0,0.49778781]
[1737288848810,0.1281281,104670.0,104660.0,0.80519781]
[1737288849005,0.0004281,104670.0,104660.0,0.90081421]
[1737288850847,0.0004281,104670.0,104660.0,0.84340421]
[1737288851053,0.0004281,104670.0,104660.0,0.84383171]
[1737288855282,0.00463328,104670.0,104660.0,0.84383171]
[1737288855484,0.00463328,104670.0,104660.0,0.85258891]
[1737288857561,0.00463328,104670.0,104660.0,1.15200424]
[1737288857780,0.00463328,104670.0,104660.0,1.35200424]
[1737288858702,0.00463328,104670.0,104660.0,0.85258891]
[1737288860711,0.08473328,104670.0,104660.0,0.85258891]
[1737288861239,0.13343328,104670.0,104660.0,0.47521531]
[1737288861720,0.13343328,104670.0,104660.0,0.49821531]
[1737288861922,0.13343328,104670.0,104660.0,0.32521531]
[1737288862330,0.13343328,104670.0,104660.0,0.35536957]
[1737288862903,0.13343328,104670.0,104660.0,0.50536957]
[1737288867254,0.10943328,104670.0,104660.0,0.60536957]
[1737288867425,0.0487,104670.0,104660.0,0.81277957]
[1737288867611,0.00089964,104680.0,104670.0,0.368538]
[1737288867953,0.00089964,104680.0,104670.0,0.66338381]
[1737288869384,0.00089964,104680.0,104670.0,0.81338381]
[1737288869587,0.00089964,104680.0,104670.0,0.87794807]
[1737288870207,0.0492,104690.0,104680.0,0.468529]
[1737288870410,0.04934919,104690.0,104680.0,0.56776981]
[1737288871300,0.04934919,104690.0,104680.0,0.57492407]
[1737288871519,0.04934919,104690.0,104680.0,0.72492407]
[1737288872169,0.00014919,104690.0,104680.0,0.72492407]
[1737288872544,0.00014919,104690.0,104680.0,0.78233407]
[1737288874548,0.00014919,104690.0,104680.0,0.80131275]
[1737288874974,0.00057669,104690.0,104680.0,0.80131275]
[1737288875385,0.079728,104700.0,104690.0,0.36852]
[1737288875566,0.079728,104700.0,104690.0,0.46776081]
[1737288875793,0.079728,104700.0,104690.0,0.81335141]
[1737288876175,0.000428,104700.0,104690.0,0.81335141]
[1737288876870,0.000428,104700.0,104690.0,0.84335141]
[1737288877093,0.000428,104700.0,104690.0,0.85050567]
[1737288877233,0.000428,104700.0,104690.0,0.90791567]
[1737288880856,0.000428,104700.0,104690.0,0.85050567]
[1737288881779,0.0004285,104710.0,104700.0,0.4]
[1737288881972,0.00089901,104720.0,104710.0,0.618501]
[1737288882151,0.00089901,104720.0,104710.0,0.81330351]
[1737288883141,1e-08,104720.0,104710.0,0.81330351]
[1737288883545,1e-08,104720.0,104710.0,0.82601443]
[1737288883724,1e-08,104720.0,104710.0,0.83753795]
[1737288884516,1e-08,104720.0,104710.0,0.84469221]
[1737288885743,0.12430001,104720.0,104710.0,0.29745777]
[1737288885946,0.12430001,104720.0,104710.0,0.20639507]
[1737288886158,0.12430001,104720.0,104710.0,0.00715426]
[1737288886303,0.22418742,104720.0,104710.0,0.00715426]
[1737288886663,0.12869542,104720.0,104710.0,0.10715426]
[1737288887347,0.22418742,104720.0,104710.0,0.10715426]
[1737288887523,0.13748882,104720.0,104710.0,0.00715426]
[1737288887923,0.13748882,104720.0,104710.0,0.1]
[1737288888129,0.23298082,104720.0,104710.0,0.1]
[1737288888343,0.23298082,104720.0,104710.0,0.023]
[1737288888755,0.23298082,104720.0,104700.0,0.19551]
[1737288888756,0.1243,104710.0,104700.0,0.19551]
[1737288888938,0.1243,104710.0,104700.0,0.34551]
[1737288889138,0.1243,104710.0,104700.0,0.36851]
[1737288890486,0.1243,104710.0,104700.0,0.273]
[1737288890637,0.219801,104710.0,104700.0,0.273]
[1737288894173,0.1243,104710.0,104700.0,0.273]
[1737288894398,0.1243,104710.0,104700.0,0.36851]
[1737288895245,0.219801,104710.0,104700.0,0.273]
[1737288895456,0.1243,104710.0,104700.0,0.36851]
[1737288897004,0.1243,104710.0,104700.0,0.39851]
[1737288897727,0.219801,104710.0,104700.0,0.39851]
[1737288897928,0.1243,104710.0,104700.0,0.39851]
[1737288898292,0.1243,104710.0,104700.0,0.39940712]
[1737288902809,0.219801,104710.0,104700.0,0.03089712]
[1737288903339,0.226801,104710.0,104700.0,0.05389712]
[1737288904078,0.226801,104710.0,104700.0,0.02389712]
[1737288904283,0.32604181,104710.0,104700.0,0.00089712]
[1737288904598,0.1275,104690.0,104680.0,0.19738177]
[1737288904800,0.1275,104690.0,104680.0,0.46866735]
[1737288906533,0.1275,104700.0,104690.0,0.409548]
[1737288906736,0.1275,104700.0,104690.0,0.50878881]
[1737288909627,0.1275,104700.0,104690.0,0.65878881]
[1737288909846,0.1275,104710.0,104700.0,0.21851]
[1737288910260,0.1275,104710.0,104700.0,0.409523]
[1737288910436,0.1275,104710.0,104700.0,0.65876381]
[1737288910872,0.67191093,104720.0,104710.0,0.123]
[1737288911072,0.16381585,104720.0,104710.0,0.46774181]
[1737288912122,0.07910001,104720.0,104710.0,0.46774181]
[1737288913036,0.07910001,104720.0,104710.0,0.47487303]
[1737288913810,0.22299201,104720.0,104710.0,0.10713122]
[1737288914006,0.22299201,104720.0,104710.0,0.195501]
[1737288914210,0.22299201,104720.0,104710.0,0.218501]
[1737288914684,0.12750001,104720.0,104710.0,0.218501]
[1737288915226,0.22299201,104720.0,104710.0,0.218501]
[1737288916243,0.12750001,104720.0,104710.0,0.218501]
[1737288916443,0.12750001,104720.0,104710.0,0.31774181]
[1737288916650,0.22299201,104720.0,104710.0,0.023]
[1737288916860,0.0791,104700.0,104690.0,0.28744312]
[1737288917065,0.22301,104700.0,104690.0,0.00089712]
[1737288917308,0.22301,104700.0,104690.0,0.10089712]
[1737288918130,0.22301,104700.0,104690.0,0.21941712]
[1737288918267,0.22301,104700.0,104690.0,0.12389712]
[1737288918479,0.22301,104700.0,104690.0,0.21941712]
[1737288918682,0.1275,104700.0,104690.0,0.21941712]
[1737288920138,0.22301,104700.0,104690.0,0.21941712]
[1737288920343,0.1275,104700.0,104690.0,0.21941712]
[1737288921096,0.1275,104700.0,104690.0,0.31865793]
[1737288921679,0.11325895,104700.0,104690.0,0.31865793]
[1737288923977,0.12222583,104700.0,104690.0,0.31865793]
[1737288924400,0.21773583,104700.0,104690.0,0.00089712]
[1737288924629,0.21773583,104700.0,104690.0,0.21941712]
[1737288924839,0.21773583,104700.0,104690.0,0.12389712]
[1737288926291,0.21773583,104700.0,104690.0,0.21941712]
[1737288926492,0.21754622,104700.0,104690.0,0.21941712]
[1737288926699,0.21754622,104700.0,104690.0,0.12389712]
[1737288927509,0.21754622,104700.0,104690.0,0.21941712]
[1737288929603,0.21754622,104700.0,104690.0,0.12389712]
[1737288929805,0.30226206,104700.0,104690.0,0.12389712]
[1737288931100,0.42933583,104700.0,104690.0,0.12389712]
[1737288931710,0.42933583,104700.0,104690.0,0.02389712]
[1737288932127,0.81035714,104700.0,104690.0,0.02389712]
[1737288933337,0.59856753,104700.0,104690.0,0.02389712]
[1737288934348,0.69780834,104700.0,104690.0,0.02389712]
[1737288935970,0.52845082,104700.0,104690.0,0.02389712]
[1737288938311,0.78244737,104700.0,104690.0,0.02389712]
[1737288939316,0.80181886,104700.0,104690.0,0.02389712]
[1737288939514,0.59015507,104700.0,104690.0,0.02389712]
[1737288940304,0.49091426,104700.0,104690.0,0.02389712]
[1737288941667,0.62086889,104700.0,104690.0,0.02389712]
[1737288942339,0.7201097,104700.0,104690.0,0.02389712]
[1737288942758,1.0201097,104700.0,104690.0,0.00089712]
[1737288943159,0.85073821,104700.0,104690.0,0.02389712]
[1737288943826,1.00073821,104700.0,104690.0,0.02389712]
[1737288944388,0.87078358,104700.0,104690.0,0.02389712]
[1737288944568,0.72078358,104700.0,104690.0,0.02389712]
[1737288944768,0.87078358,104700.0,104690.0,0.02389712]
[1737288944999,0.87121158,104700.0,104690.0,0.02389712]
[1737288945457,0.52302,104690.0,104680.0,0.00089754]
[1737288945659,0.223038,104670.0,104660.0,0.0004275]
[1737288945858,0.230038,104670.0,104660.0,0.00057669]
[1737288946064,0.47927881,104670.0,104660.0,0.00057669]
[1737288946219,0.62927881,104670.0,104660.0,0.00057669]
[1737288946642,0.47927881,104670.0,104660.0,0.00057669]
[1737288947412,0.69225432,104670.0,104660.0,0.00057669]
[1737288947965,0.4778,104650.0,104630.0,0.2871496]
[1737288948143,0.1275,104640.0,104630.0,0.4101496]
[1737288948801,0.286669,104650.0,104640.0,0.023]
[1737288949771,0.368869,104650.0,104640.0,0.023]
[1737288950414,0.368869,104650.0,104640.0,0.118565]
[1737288950560,0.0822,104650.0,104640.0,0.218565]
[1737288950759,0.00911128,104650.0,104640.0,0.218565]
[1737288950977,0.42822117,104660.0,104650.0,0.118556]
[1737288951320,0.38292117,104660.0,104650.0,0.218556]
[1737288952169,0.58855359,104670.0,104660.0,0.023]
[1737288952170,0.37591793,104670.0,104660.0,0.023]
[1737288952422,0.09153738,104670.0,104660.0,0.023]
[1737288952615,0.18707538,104670.0,104660.0,0.023]
[1737288953795,0.19407538,104670.0,104660.0,0.023]
[1737288955175,0.18707538,104670.0,104660.0,0.023]
[1737288956663,0.18707538,104670.0,104660.0,0.0234282]
[1737288957831,0.18707538,104670.0,104660.0,0.1189752]
[1737288958028,0.18707538,104670.0,104660.0,0.2189752]
[1737288958029,0.09153738,104670.0,104660.0,0.2189752]
[1737288959182,0.18707538,104670.0,104660.0,0.2189752]
[1737288959792,0.18707538,104670.0,104660.0,0.1234282]
[1737288959990,0.18707538,104670.0,104660.0,0.2189752]
[1737288960772,0.09153738,104670.0,104660.0,0.2189752]
[1737288961180,0.18707538,104670.0,104660.0,0.2189752]
[1737288964257,0.18707538,104670.0,104660.0,0.1234282]
[1737288964467,0.18707538,104670.0,104660.0,0.0004282]
[1737288964676,0.439117,104670.0,104660.0,0.0004282]
[1737288964849,0.589117,104670.0,104660.0,0.0004282]
[1737288965050,0.369065,104640.0,104630.0,0.0004276]
[1737288965814,0.219065,104640.0,104630.0,0.0004276]
[1737288966252,0.219065,104640.0,104630.0,0.0234276]
[1737288966664,0.219065,104640.0,104630.0,0.0004276]
[1737288967481,0.68103979,104640.0,104630.0,0.0004276]
[1737288967756,0.6302806,104640.0,104630.0,0.0004276]
[1737288967978,0.55062666,104640.0,104630.0,0.0004276]
[1737288968189,0.70062666,104640.0,104630.0,0.0004276]
[1737288968605,0.87081385,104640.0,104630.0,0.0004276]
[1737288969887,0.73691377,104640.0,104630.0,0.0004276]
[1737288970139,0.82179105,104640.0,104630.0,0.0004276]
[1737288971121,0.47689837,104640.0,104630.0,0.1734276]
[1737288971325,0.50991777,104650.0,104640.0,0.218565]
[1737288972415,0.41920078,104660.0,104650.0,0.023]
[1737288973056,0.59497556,104670.0,104660.0,0.368547]
[1737288973257,0.59355556,104670.0,104660.0,0.46778781]
[1737288974897,0.59355556,104670.0,104660.0,0.36778781]
[1737288975093,0.329438,104670.0,104660.0,0.023]
[1737288975559,0.095556,104650.0,104640.0,0.095561]
[1737288975763,0.477755,104660.0,104640.0,0.38669]
[1737288975933,0.477755,104660.0,104640.0,0.095561]
[1737288975934,0.095556,104650.0,104640.0,0.095561]
[1737288976139,0.095556,104650.0,104640.0,0.1]
[1737288976481,0.459142,104650.0,104630.0,0.1004276]
[1737288976657,0.363572,104650.0,104630.0,0.3871486]
[1737288976842,0.1235,104660.0,104650.0,0.095556]
[1737288977045,0.410149,104660.0,104640.0,0.577803]
[1737288977381,0.410149,104660.0,104650.0,0.023]
[1737288977592,0.79239397,104660.0,104650.0,0.023]
[1737288977944,0.60129697,104660.0,104650.0,0.118556]
[1737288978283,0.60129697,104660.0,104650.0,0.023]
[1737288978581,0.30401486,104660.0,104650.0,0.023]
[1737288979428,0.30401486,104660.0,104630.0,0.3871396]
[1737288979429,0.191115,104650.0,104630.0,0.3871396]
[1737288979629,0.382241,104650.0,104630.0,0.3871396]
[1737288979843,0.286678,104650.0,104640.0,0.023]
[1737288980546,0.095565,104640.0,104630.0,0.1960016]
[1737288980832,0.172465,104640.0,104630.0,0.0004276]
[1737288981183,0.219065,104640.0,104630.0,0.0004276]
[1737288982569,0.31830581,104640.0,104610.0,0.27916201]
[1737288982807,0.31830581,104640.0,104590.0,0.191221]
[1737288983019,0.31830581,104640.0,104570.0,0.12812611]
[1737288983211,0.31830581,104640.0,104540.0,1.5518443]
[1737288983429,0.02840918,104620.0,104500.0,0.46245519]
[1737288983660,0.1,104440.0,104410.0,0.60428664]
[1737288983868,0.095776,104410.0,104400.0,0.7238909]
[1737288984295,0.345776,104410.0,104400.0,0.00010167]
[1737288984704,0.245776,104410.0,104400.0,0.00010167]
[1737288984908,0.245776,104410.0,104400.0,0.0005997]
[1737288985529,0.34501681,104410.0,104400.0,0.0005997]
[1737288986160,0.99111681,104410.0,104400.0,0.0005997]
[1737288986573,0.89111681,104410.0,104400.0,0.0005997]
[1737288986786,0.15,104380.0,104350.0,0.191654]
[1737288986995,0.15,104380.0,104370.0,0.08742541]
[1737288987204,0.15,104380.0,104370.0,0.18666622]
[1737288987413,0.1,104380.0,104370.0,0.18398444]
[1737288987604,0.25,104380.0,104370.0,0.08474363]
[1737288987746,0.25,104380.0,104370.0,0.09258363]
[1737288987949,0.1,104380.0,104370.0,0.12400884]
[1737288988202,0.15,104380.0,104370.0,0.1209019]
[1737288988403,0.15,104380.0,104370.0,0.11994389]
[1737288988557,0.15,104380.0,104370.0,0.10965397]
[1737288988996,0.15,104380.0,104370.0,0.01384597]
[1737288989204,0.15,104380.0,104350.0,0.19215814]
[1737288989205,0.15,104370.0,104350.0,0.19215814]
[1737288989416,0.15,104370.0,104360.0,0.0045912]
[1737288989417,0.25,104370.0,104360.0,0.0045912]
[1737288989578,0.25,104370.0,104350.0,0.29897621]
[1737288989782,0.25,104370.0,104350.0,0.57862321]
[1737288989982,0.25,104370.0,104350.0,0.29113621]
[1737288990207,7.76559516,104360.0,104350.0,0.140985]
[1737288990412,7.76559516,104360.0,104350.0,0.12920032]
[1737288990697,7.76559516,104360.0,104350.0,0.13704032]
[1737288990875,7.76559516,104360.0,104350.0,0.295327]
[1737288990876,8.01559516,104360.0,104350.0,0.295327]
[1737288991190,7.86559516,104360.0,104350.0,0.287487]
[1737288991318,4.78535844,104360.0,104340.0,0.199505]
[1737288991523,4.88535844,104360.0,104350.0,0.1197842]
[1737288991753,4.63535844,104360.0,104350.0,0.460487]
[1737288991958,4.63535844,104360.0,104350.0,0.460447]
[1737288992175,4.63535844,104360.0,104350.0,0.56011591]
[1737288992814,4.63535844,104360.0,104350.0,0.38715591]
[1737288992962,3.40781464,104360.0,104350.0,0.38715591]
[1737288993376,3.40781464,104360.0,104350.0,0.2957551]
[1737288993988,3.40781464,104360.0,104350.0,0.27047843]
[1737288994652,3.40781464,104360.0,104350.0,0.43563843]
[1737288995195,3.50781464,104360.0,104350.0,0.43563843]
[1737288995406,3.65781464,104360.0,104350.0,0.25234509]
[1737288995602,3.65781464,104360.0,104350.0,0.44400609]
[1737288995801,3.55781464,104360.0,104350.0,0.42096609]
[1737288996282,2.02338494,104360.0,104350.0,0.44396609]
[1737288996487,2.02338494,104360.0,104350.0,0.18027383]
[1737288996695,2.02338494,104360.0,104350.0,0.118826]
[1737288997729,2.02338494,104360.0,104340.0,0.103674]
[1737288997730,0.1,104350.0,104340.0,0.103674]
[1737288997999,0.1,104350.0,104340.0,0.295341]
[1737288998207,0.1,104350.0,104340.0,0.287501]
[1737288998383,0.1,104350.0,104340.0,0.437501]
[1737288998594,0.1,104350.0,104340.0,0.445341]
[1737288998750,0.1,104350.0,104340.0,0.26970356]
[1737288999159,0.1,104350.0,104340.0,0.46137056]
[1737288999367,0.1,104350.0,104340.0,0.45353056]
[1737288999574,0.1,104350.0,104340.0,0.2378137]
[1737288999754,0.1,104350.0,104340.0,0.310501]
[1737288999957,0.1,104350.0,104340.0,0.118834]
[1737289000199,0.25,104350.0,104340.0,0.318341]
[1737289000740,0.25,104350.0,104340.0,0.310501]
[1737289000913,0.25,104350.0,104340.0,0.103674]
[1737289001147,0.25,104350.0,104340.0,0.199507]
[1737289001306,0.25,104350.0,104340.0,0.295341]
[1737289001536,0.25,104350.0,104340.0,0.287421]
[1737289001720,0.25,104350.0,104340.0,0.295261]
[1737289001885,0.25,104350.0,104340.0,0.103674]
[1737289002342,0.25,104350.0,104340.0,0.295301]
[1737289002770,0.25,104350.0,104340.0,0.295261]
[1737289003159,1.03758607,104350.0,104340.0,0.295261]
[1737289003803,0.88758607,104350.0,104340.0,0.2956904]
[1737289003982,0.50402799,104350.0,104340.0,0.2956904]
[1737289004324,0.65402799,104350.0,104340.0,0.0004294]
[1737289004544,0.25,104350.0,104340.0,0.1040694]
[1737289004909,0.85595824,104350.0,104340.0,0.00784]
[1737289005063,0.85595824,104350.0,104340.0,0.10368]
[1737289005522,0.25,104350.0,104340.0,0.10368]
[1737289005725,0.25,104350.0,104340.0,0.09584]
[1737289006987,0.25,104340.0,104320.0,0.191706]
[1737289007138,0.25,104340.0,104330.0,0.095849]
[1737289007310,0.25,104340.0,104330.0,0.08977305]
[1737289007506,0.67411129,104340.0,104330.0,0.08977305]
[1737289008033,0.25,104340.0,104320.0,0.48271054]
[1737289008233,0.1,104330.0,104320.0,0.28762373]
[1737289008653,0.1,104330.0,104310.0,0.2152713]
[1737289008856,0.1,104330.0,104320.0,0.287574]
[1737289009129,0.34626368,104330.0,104320.0,0.287574]
[1737289009295,0.34626368,104330.0,104310.0,0.31501069]
[1737289009497,0.34626368,104330.0,104320.0,0.095857]
[1737289009672,0.34626368,104330.0,104310.0,0.31163088]
[1737289009877,0.38736197,104330.0,104320.0,0.14396309]
[1737289010110,0.53736197,104330.0,104310.0,0.49551488]
[1737289010437,0.30530027,104320.0,104310.0,0.11990688]
[1737289010997,0.1,104320.0,104310.0,0.11207388]
[1737289011202,0.1,104320.0,104310.0,0.01620588]
[1737289011564,0.1,104320.0,104310.0,0.11207388]
[1737289012120,0.1,104320.0,104300.0,0.18476765]
[1737289012313,0.10049549,104320.0,104300.0,0.36212583]
[1737289012464,0.10049549,104320.0,104300.0,0.74561983]
[1737289012665,0.10049549,104320.0,104300.0,0.74557983]
[1737289013118,0.10049549,104320.0,104300.0,0.45458602]
[1737289013830,0.10049549,104320.0,104300.0,0.103713]
[1737289014153,0.10049549,104320.0,104300.0,0.295454]
[1737289014997,0.10049549,104320.0,104300.0,0.487198]
[1737289015203,0.00049549,104320.0,104310.0,0.095868]
[1737289015326,0.00049549,104320.0,104310.0,0.19606741]
[1737289015535,0.00049549,104320.0,104310.0,0.29984541]
[1737289015735,0.00049549,104320.0,104310.0,0.29888681]
[1737289015994,0.00049549,104320.0,104310.0,0.32188681]
[1737289016193,0.00049549,104320.0,104310.0,0.47188681]
[1737289018311,0.00049549,104320.0,104310.0,0.52929681]
[1737289018546,0.00049549,104320.0,104310.0,0.35038053]
[1737289018770,0.00049549,104320.0,104310.0,0.45519017]
[1737289019706,0.00049549,104320.0,104310.0,0.53589017]
[1737289020569,0.00049549,104320.0,104310.0,0.37450017]
[1737289020779,0.00049549,104320.0,104310.0,0.38634893]
[1737289020977,0.00049549,104320.0,104310.0,0.39390893]
[1737289021273,0.00049549,104320.0,104310.0,0.41690893]
[1737289023031,0.00049549,104320.0,104310.0,0.40934893]
[1737289023241,0.00049549,104320.0,104310.0,0.41690893]
[1737289023884,0.00049549,104320.0,104310.0,0.40934893]
[1737289024091,0.00049549,104320.0,104310.0,0.41690893]
[1737289024669,0.00049549,104320.0,104310.0,0.10680081]
[1737289024868,0.00049549,104320.0,104310.0,0.1917889]
[1737289025070,0.00049549,104320.0,104310.0,0.1993489]
[1737289025521,0.00049549,104320.0,104310.0,0.1917889]
[1737289025723,0.10049549,104320.0,104310.0,0.1993489]
[1737289026278,0.10049549,104320.0,104310.0,0.1917889]
[1737289026579,0.10049549,104320.0,104310.0,0.00756]
[1737289026795,0.10049549,104320.0,104310.0,0.103428]
[1737289027002,0.10049549,104320.0,104310.0,0.0962976]
[1737289027225,0.10049549,104320.0,104310.0,0.1038576]
[1737289027428,0.18283994,104320.0,104310.0,0.0079896]
[1737289027625,0.18283994,104320.0,104310.0,0.1038576]
[1737289028461,0.30635662,104320.0,104310.0,0.1038576]
[1737289028999,0.20635662,104320.0,104310.0,0.0962976]
[1737289029165,0.20635662,104320.0,104310.0,0.10481615]
[1737289029362,0.20635662,104320.0,104310.0,0.37705696]
[1737289029554,0.20635662,104320.0,104310.0,0.37609841]
[1737289029968,0.24752885,104320.0,104310.0,0.37609841]
[1737289030790,0.38344097,104320.0,104310.0,0.37609841]
[1737289031903,0.29838601,104320.0,104310.0,0.37609841]
[1737289032828,0.38344097,104320.0,104310.0,0.37609841]
[1737289035110,0.17069348,104320.0,104310.0,0.37609841]
[1737289036155,0.29850427,104320.0,104310.0,0.37609841]
[1737289036994,0.29850427,104320.0,104310.0,0.38505712]
[1737289038251,0.00139765,104320.0,104310.0,0.38505712]
[1737289038457,0.00139765,104320.0,104310.0,0.40444239]
[1737289039551,0.19126921,104330.0,104320.0,0.268858]
[1737289039756,0.17207921,104330.0,104320.0,0.47155631]
[1737289039967,0.13994757,104330.0,104320.0,0.59046131]
[1737289040388,0.08523077,104340.0,104330.0,0.268849]
[1737289040648,0.08523077,104340.0,104330.0,0.36808981]
[1737289041812,0.38384764,104350.0,104340.0,0.26884]
[1737289041813,0.17110015,104350.0,104340.0,0.26884]
[1737289042059,0.00090216,104350.0,104340.0,0.46397081]
[1737289044076,0.00090216,104350.0,104340.0,0.66454781]
[1737289045076,0.00090216,104350.0,104340.0,0.67210781]
[1737289046220,0.00090174,104360.0,104350.0,0.268831]
[1737289046410,0.00090174,104360.0,104350.0,0.36807181]
[1737289046806,0.00090174,104360.0,104350.0,0.70497881]
[1737289047396,0.00090174,104360.0,104350.0,0.58972312]
[1737289049449,0.00090174,104360.0,104350.0,0.10671012]
[1737289049652,0.00090174,104360.0,104350.0,0.20349915]
[1737289049859,0.00090174,104360.0,104350.0,0.37649915]
[1737289050070,0.00090174,104360.0,104350.0,0.37554112]
[1737289051099,0.00090174,104360.0,104350.0,0.87446112]
[1737289051293,0.00090174,104360.0,104350.0,0.69587112]
[1737289051996,0.00090174,104360.0,104350.0,0.37554112]
[1737289052202,0.00090174,104360.0,104350.0,0.74424312]
[1737289052408,0.00090174,104360.0,104350.0,0.51306612]
[1737289053198,0.00090174,104360.0,104350.0,0.51158612]
[1737289054064,0.00090174,104360.0,104350.0,0.48336212]
[1737289054515,0.00090174,104360.0,104350.0,0.49764012]
[1737289056152,0.00090174,104360.0,104350.0,0.57238116]